Cogmind - Beta 14 @@@ ROGUE MODE // 2024.12.07 @ 18:59:55 Player: Sirracha Result: Destroyed by G-50 Soldier with Heavy Laser Performance ------------- Evolutions (3) 1500 Regions Visited (4) 800 Robots Destroyed (69) 345 Value Destroyed (2416) 2416 Prototype IDs (2) 40 Alien Tech Used (0) 0 Bonus (192) 192 TOTAL SCORE: 5293 Bonus ------- High Alert Combat Kills 172 Follower Combat Kills 110 Friendly Fire -90 Cogmind --------- Core Integrity 0/700 Matter 228/300 Energy 100/100 System Corruption 8% Temperature Cool (9) Movement Core (1350) Ox26 Location -7/Factory Parts ------- > --- POWER (2) -------- (None) > --- PROPULSION (3) --- (None) > --- UTILITY (6) ------ Huge Storage Unit Improved Signal Interpreter System Shield System Shield > --- WEAPON (2) ------- (None) > --- INVENTORY (25) --- (None) Peak State ------------ > --- POWER ------------ Nuclear Core Light Nuclear Core > --- PROPULSION ------- Aluminum Leg Carbon-fiber Leg Carbon-fiber Leg > --- UTILITY ---------- Improved Heat Sink Improved Signal Interpreter Improved Light Armor Plating Improved Shield Generator System Shield System Shield > --- WEAPON ----------- Minigun Gauss Cannon > --- INVENTORY -------- Light Ion Engine Gravmag System Gravmag System Advanced Assault Cannon [Rating: 40] Favorites ----------- Power Nuclear Core Engine Light Ion Engine Power Core Nuclear Core Propulsion Aluminum Leg Treads Light Treads Leg Aluminum Leg Hover Unit Hover Unit Utility System Shield Device Improved Heat Sink Storage Small Storage Unit Processor Improved Signal Interpreter Hackware System Shield Protection Improved Light Armor Plating Weapon Assault Rifle Energy Gun Particle Gun Energy Cannon Light EM Pulse Cannon Ballistic Gun Assault Rifle Ballistic Cannon Gauss Cannon Launcher Heavy Missile Launcher Special Weapon Welding Torch Slashing Weapon Scythe Build | -11 -10 -9 -8 -7 ------- Run | Yrd Mat Mat Mat Fac Slots Evolved 6 | . . 2 2 2 Power 1 | . . . 1 . Propulsion 1 | . . . . 1 Utility 4 | . . 2 1 1 Weapon . | . . . . . Parts Attached 78 | 6 2 12 27 31 Power 17 | 1 1 2 6 7 Engine 10 | 1 1 2 1 5 Core 7 | . . . 5 2 Reactor . | . . . . . Propulsion 24 | 2 . 7 6 9 Treads 5 | 2 . 3 . . Leg 11 | . . . 4 7 Wheel . | . . . . . Hover 8 | . . 4 2 2 Flight . | . . . . . Utility 22 | 1 1 2 12 6 Device 10 | . 1 1 5 3 Storage 2 | 1 . . . 1 Processor 3 | . . 1 2 . Hackware 3 | . . . 2 1 Protection 4 | . . . 3 1 Artifact . | . . . . . Weapon 15 | 2 . 1 3 9 Energy Gun 1 | . . . 1 . Energy Cannon 2 | . . . 1 1 Ballistic Gun 4 | 2 . 1 . 1 Ballistic Cannon 5 | . . . . 5 Launcher 1 | . . . . 1 Special Weapon 1 | . . . . 1 Impact Weapon . | . . . . . Slashing Weapon 1 | . . . 1 . Piercing Weapon . | . . . . . Special Melee Weapon . | . . . . . Unidentified Prototypes . | . . . . . Parts Lost 41 | . . 1 13 27 Power 10 | . . . 4 6 Propulsion 13 | . . 1 3 9 Utility 9 | . . . 3 6 Weapon 9 | . . . 3 6 Highest Loss Streak 13 | . . 1 5 13 To Critical Strikes . | . . . . . Average Slot Usage (%) 92 | . 99 99 82 92 Engine 7 | . 14 11 4 4 Core 4 | . . . 5 8 Treads 7 | . 28 16 . . Leg 9 | . . . 6 20 Hover 3 | . . 5 9 . Device 17 | . 13 21 15 18 Storage 4 | . 14 11 1 . Processor 8 | . . 10 16 7 Hackware 5 | . . . 4 9 Protection 3 | . . . 5 5 Energy Cannon 1 | . . . 1 2 Ballistic Gun 11 | . 28 22 8 2 Ballistic Cannon 3 | . . . . 8 Peak Build Rating 40 | 6 9 12 29 40 Average Rating 22 | 4 8 11 22 34 On Entrance 11 | . 6 9 12 28 Naked Turns . | . . . . . Heaviest Build 86 | 14 18 19 24 86 Greatest Support 40 | 40 40 40 25 40 Greatest Overweight (x) 8 | 1 . 2 3 8 Average Overweight (x) . | . . . . . Largest Inventory Capacity 25 | 8 8 8 8 25 Average Capacity 6 | 6 8 8 5 5 Most Carried 8 | 2 5 8 8 5 Average Carried 4 | . 3 6 4 4 Final Capacity 25 | 8 8 8 5 25 Final Carried 8 | 1 5 8 4 . Class Distribution -------------------- 51% | Mutant 35% | Scavenger-Mutant 13% | Hacker-Mutant Dominant Class ---------------- Mutant | -10/Materials Mutant | -9/Materials Mutant | -8/Materials Scavenger-Mutant | -7/Factory Resources | -11 -10 -9 -8 -7 ----------- Run | Yrd Mat Mat Mat Fac Matter Collected 2002 | 247 117 340 433 865 Remotely . | . . . . . Salvage Created 2244 | . 169 506 507 1062 Parts 132 | . 10 43 29 50 Haulers Intercepted . | . . . . . Recyclers Shooed 1 | . . 1 . . Parts Field Recycled . | . . . . . Retrieved Matter . | . . . . . Parts Self-Destructed . | . . . . . Prevented . | . . . . . Kills | -11 -10 -9 -8 -7 ------- Run | Yrd Mat Mat Mat Fac Combat Hostiles Destroyed 52 | . 2 15 10 25 Melee 5 | . . . 5 . Guns 25 | . 2 15 5 3 Cannons 13 | . . . . 13 AOE 9 | . . . . 9 Classes Destroyed 12 | . 3 2 1 6 Worker 1 | . . . . 1 Builder 4 | . . . . 4 Recycler 4 | . 1 . . 3 Mechanic 1 | . . . . 1 Operator 1 | . . . . 1 Watcher 6 | . 1 4 . 1 Swarmer 13 | . . 8 . 5 Grunt 27 | . 2 5 7 13 Duelist 1 | . . . . 1 Sentry 6 | . . 2 2 2 Hunter 2 | . . . 1 1 Programmer 3 | . . . . 3 Best Kill Streak 12 | . 1 5 3 12 Combat Bots Only 4 | . 1 4 3 4 Max Kills in Single Turn 6 | . 1 2 1 6 Gunslinging 1 | . . 1 . . Exploded 2 | . . . . 2 Melee 1 | . . . 1 . Uniques/NPCs Destroyed . | . . . . . Combat | -11 -10 -9 -8 -7 -------- Run | Yrd Mat Mat Mat Fac Hostile Shots Fired 564 | . 16 86 111 351 Missed 202 | . 7 34 29 132 Damage Taken 4592 | . 100 523 1325 2644 Core 1134 | . 11 84 331 708 Absorbed by Shields 401 | . . . . 401 Core Remaining (%) 78 | 100 95 79 39 . Volleys Fired 191 | . 13 54 32 92 Largest 2 | . 2 2 2 2 Hottest 104 | . 40 43 88 104 Shots Fired 343 | . 26 108 47 162 Gun 221 | . 26 108 45 42 Cannon 113 | . . . 2 111 Launcher 6 | . . . . 6 Special 3 | . . . . 3 Kinetic 302 | . 26 108 43 125 Thermal 5 | . . . 2 3 Explosive 6 | . . . . 6 Electromagnetic 30 | . . . 2 28 Robot Hit Streak 8 | . 4 8 7 7 Robot Miss Streak 5 | . 5 4 2 3 Penetration Max . | . . . . . Secondary Targets 3 | . . 3 . . Max Gunslinging Chain 1 | . . 1 . . Shots Hit Robots 226 | . 14 61 50 101 Core Hits 104 | . 6 27 21 50 Critical Kills . | . . . . . Critical Parts Destroyed 1 | . . . . 1 Critical Strikes 10 | . . . 2 8 Destroy 1 | . . . . 1 Blast 7 | . . . . 7 Sever 2 | . . . 2 . Melee Attacks 27 | . . . 27 . Impact . | . . . . . Slashing 27 | . . . 27 . Piercing . | . . . . . Sneak Attacks . | . . . . . Combat Hostiles . | . . . . . Follow-up Attacks . | . . . . . Damage Inflicted 6111 | . 207 913 1122 3869 Guns 2070 | . 207 902 424 537 Cannons 1887 | . . . 38 1849 Explosions 1479 | . . . . 1479 Melee 660 | . . . 660 . Ramming 11 | . . 11 . . Kinetic 3441 | . 207 902 390 1942 Thermal 83 | . . . 34 49 Explosive 1434 | . . . . 1434 Electromagnetic 482 | . . . 38 444 Impact . | . . . . . Slashing 660 | . . . 660 . Piercing . | . . . . . Highest Corruption 8 | . 2 . . 8 Average Corruption 2 | . 2 . . 2 Corruption Purged . | . . . . . Corruption Blocked . | . . . . . Effects 14 | . 3 . . 11 Message Errors 2 | . 1 . . 1 Matter Fused 3 | . 1 . . 2 Heat Flow Errors 1 | . . . . 1 Energy Discharges 2 | . . . . 2 Data Loss (minor) 5 | . 1 . . 4 Data Loss (major) 1 | . . . . 1 Overload Shots . | . . . . . Overflow Damage 179 | . . . 18 161 Projectiles 97 | . . . . 97 Explosions 64 | . . . . 64 Melee 18 | . . . 18 . Knockbacks 15 | . . . . 15 Impact . | . . . . . Kinetic 14 | . . . . 14 Secondary 1 | . . . . 1 Self-Inflicted Damage 184 | . . . . 184 Shots 4 | . . . . 4 Rammed 2 | . . 2 . . Targets Rammed 2 | . . 2 . . Kicked . | . . . . . Crushed . | . . . . . Highest Temperature 252 | . . . 252 171 Average Temperature 72 | . . . 128 14 Received Heat Transfer 1376 | . 54 174 738 410 Effects 4 | . . . 4 . Energy Bleed 1 | . . . 1 . Interference 3 | . . . 3 . Siege Activations . | . . . . . Robots Corrupted . | . . . . . Combat Hostiles . | . . . . . Parts Fried . | . . . . . Impact Corruptions . | . . . . . Robots Melted . | . . . . . Combat Hostiles . | . . . . . Parts Melted . | . . . . . Heat Transferred 149 | . . . 74 75 Parts Sabotaged . | . . . . . Parts Stolen . | . . . . . Parts Stripped . | . . . . . Power Chain Reactions 1 | . . . . 1 Alert | -11 -10 -9 -8 -7 ------- Run | Yrd Mat Mat Mat Fac Peak Influence 658 | . 94 283 187 658 Initial 118 | . . 2 118 28 Average 145 | . 26 122 87 257 Maximum Alert Level 2 | . . 1 . 2 Low Security (%) 75 | 100 100 68 100 48 Level 1 8 | . . 31 . 9 Level 2 16 | . . . . 41 Level 3 . | . . . . . Level 4 . | . . . . . Level 5 . | . . . . . High Security . | . . . . . Max Security . | . . . . . Squads Dispatched 16 | . 2 2 2 10 Investigation 2 | . 1 . . 1 Extermination 3 | . . . . 3 Reinforcement 10 | . 1 2 2 5 Assault 1 | . . . . 1 Garrison . | . . . . . Intercept . | . . . . . Searches Triggered . | . . . . . Construction Impeded 1 | . . . . 1 Haulers Reinforced . | . . . . . Active Scanning Responses . | . . . . . Cargo Convoy Interrupts 1 | . . . . 1 Stealth | -11 -10 -9 -8 -7 --------- Run | Yrd Mat Mat Mat Fac Distress Signals 6 | . . 3 1 2 Communications Jammed . | . . . . . Distress Signals . | . . . . . Times Spotted 94 | . 3 26 18 47 Peak Tracking Total 8 | . 1 5 4 8 Tactical Retreats 5 | . . 1 2 2 Traps | -11 -10 -9 -8 -7 ------- Run | Yrd Mat Mat Mat Fac Traps Triggered 2 | . 1 . . 1 Indirectly . | . . . . . Trap Hack Attempts . | . . . . . Triggered . | . . . . . Disarmed . | . . . . . Reprogrammed . | . . . . . Reused . | . . . . . Traps Extracted . | . . . . . Installed . | . . . . . Triggered 2 | . . . . 2 Machines | -11 -10 -9 -8 -7 ---------- Run | Yrd Mat Mat Mat Fac Machines Disabled 18 | . . . . 18 Max in Single Turn 4 | . . . . 4 Machines Repaired . | . . . . . Machines Dismantled . | . . . . . Machines Sabotaged . | . . . . . Overloaded Fab Kills . | . . . . . Hacking | -11 -10 -9 -8 -7 --------- Run | Yrd Mat Mat Mat Fac Machines Accessed 19 | . 4 3 4 8 Terminals 17 | . 4 3 4 6 Fabricators 2 | . . . . 2 Repair Stations . | . . . . . Recycling Units . | . . . . . Scanalyzers . | . . . . . Garrison Access . | . . . . . Total Hacks 49 | . 10 5 13 21 Successful 24 | . 6 3 7 8 Failed 25 | . 4 2 6 13 Catastrophic 5 | . . . . 5 Database Lockouts . | . . . . . Manual 1 | . . 1 . . Terminals 42 | . 10 5 13 14 Fabricators 7 | . . . . 7 Repair Stations . | . . . . . Recycling Units . | . . . . . Scanalyzers . | . . . . . Garrison Access . | . . . . . Terminal Hacks 22 | . 6 3 7 6 Record 7 | . 2 . 3 2 Prototype ID Bank 1 | . . 1 . . Open DSF 2 | . . . . 2 Emergency Access Points 2 | . 1 . . 1 Alert Level 4 | . 1 1 2 . Locate Traps 1 | . . . 1 . Dispatch Records 3 | . 1 . 1 1 Investigation Status 1 | . . 1 . . Hauler Manifests 1 | . 1 . . . Fabricator Hacks 2 | . . . . 2 Network Status 1 | . . . . 1 Build 1 | . . . . 1 Repair Station Hacks . | . . . . . Recycling Unit Hacks . | . . . . . Scanalyzer . | . . . . . Garrison Access Hacks . | . . . . . Unauthorized Hacks . | . . . . . Terminals . | . . . . . Fabricators . | . . . . . Repair Stations . | . . . . . Recycling Units . | . . . . . Scanalyzers . | . . . . . Garrison Access . | . . . . . Data Cores Recovered . | . . . . . Used . | . . . . . Hacking Detections 11 | . 2 2 4 3 Full Trace Events 2 | . . . 1 1 Feedback Events . | . . . . . Feedback Blocked . | . . . . . Robot Schematics Acquired . | . . . . . Robots Built 2 | . . . . 2 Authchips . | . . . . . Time 134 | . . . . 134 Total Robot Build Rating 8 | . . . . 8 Part Schematics Acquired . | . . . . . Parts Built . | . . . . . Authchips . | . . . . . Time . | . . . . . Total Part Build Rating . | . . . . . Parts Repaired . | . . . . . Time . | . . . . . Parts Recycled . | . . . . . Recycled Matter . | . . . . . Retrieved Matter . | . . . . . Retrieved Components . | . . . . . Parts Scanalyzed . | . . . . . Part Schematics Acquired . | . . . . . Parts Damaged . | . . . . . Bothacking | -11 -10 -9 -8 -7 ------------ Run | Yrd Mat Mat Mat Fac Used RIF Installer . | . . . . . Robots Hacked . | . . . . . Non-combat . | . . . . . Combat . | . . . . . Robot Hacks Applied . | . . . . . Relay Couplers Released 3 | . . . . 3 Programmers 3 | . . . . 3 Fabnet Peak Effective % . | . . . . . Robots Rewired . | . . . . . Allies Hacked . | . . . . . Hacks Repelled . | . . . . . Allies | -11 -10 -9 -8 -7 -------- Run | Yrd Mat Mat Mat Fac Total Allies 2 | . . . . 2 Largest Group 2 | . . . . 2 Highest-Rated Group 64 | . . . . 64 Highest-Rated Ally 32 | . . . . 32 Total Orders . | . . . . . Ally Attacks 9 | . . . . 9 Total Damage 340 | . . . . 340 Kills 3 | . . . . 3 Allies Corrupted . | . . . . . Allies Melted . | . . . . . Intel | -11 -10 -9 -8 -7 ------- Run | Yrd Mat Mat Mat Fac Robot Analysis Total . | . . . . . Derelict Logs Recovered . | . . . . . Drone Launches . | . . . . . Drone Recoveries . | . . . . . Exploration | -11 -10 -9 -8 -7 ------------- Run | Yrd Mat Mat Mat Fac Turns Passed 4702 | 80 868 773 1178 1803 Spaces Moved 2363 | 46 388 401 760 768 Core 80 | 5 . . 58 17 Treads 675 | 41 388 246 . . Legs 1008 | . . . 287 721 Wheels . | . . . . . Hover 600 | . . 155 415 30 Flight . | . . . . . Fastest Speed 50 | 50 160 116 50 50 Average Speed 131 | 149 160 143 116 124 Slowest Speed 540 | 160 160 200 240 540 Overloaded Moves . | . . . . . Propulsion Burnouts . | . . . . . Robots Hopped . | . . . . . Cave-ins Triggered . | . . . . . Exploration Rate (%) 32 | 5 68 37 34 19 Regions Visited 4 Branch Regions . Pre-discovered Areas . | . . . . . Known Exits Taken 2 | . . 1 1 . Unknown Exits Taken 2 | 1 1 . . . Scrap Searched . | . . . . . Spaces Dug . | . . . . . Terrain Destroyed 136 | . . . . 136 Melee . | . . . . . Projectile 18 | . . . . 18 AOE 118 | . . . . 118 Terrain Rammed . | . . . . . Walls Destroyed . | . . . . . Machines Disabled . | . . . . . Actions | -11 -10 -9 -8 -7 --------- Run | Yrd Mat Mat Mat Fac Total 3584 | 58 610 488 971 1457 Wait 832 | . 197 6 89 540 Move 2359 | 45 387 400 759 768 Hop . | . . . . . Pick Up 64 | 7 8 10 22 17 Fast Attach 10 | . . . 2 8 Attach 43 | 6 1 3 17 16 Detach 3 | . . . 2 1 Swap 25 | . 1 9 8 7 Drop 28 | . 3 4 13 8 Fire 191 | . 13 54 32 92 Melee 27 | . . . 27 . Ram . | . . . . . Kick . | . . . . . Crush 2 | . . 2 . . Escape Stasis . | . . . . . Rewire . | . . . . . Trap . | . . . . . Miscellaneous . | . . . . . Route ------- -11/Scrapyard -10/Materials (discovered 2 exits: *Mat / [*Min]) -9/Materials -8/Materials -7/Factory History --------- Turn | Location | Event 6 | -11/Scrapyard | Discovered new exit (range 16) 81 | -11/Scrapyard | Entered Materials 315 | -10/Materials | Build established: Mutant 499 | -10/Materials | Discovered new exit (range 15) 749 | -10/Materials | Discovered new exit (range 9) 949 | -10/Materials | Entered another Materials area 949 | -9/Materials | Evolved 2 slots: Utility x2 1620 | -9/Materials | Discovered new exit (range 16) 1668 | -9/Materials | Identified exit to Materials 1722 | -9/Materials | Entered another Materials area 1722 | -8/Materials | Evolved 2 slots: Power x1, Utility x1 1798 | -8/Materials | Build established: Scavenger-Mutant 2150 | -8/Materials | Build established: Mutant 2283 | -8/Materials | Lost 3 parts (1p1n1w) 2350 | -8/Materials | Lost 5 parts (1p1n1u2w) 2703 | -8/Materials | Discovered new exit (range 13) 2744 | -8/Materials | Core integrity fell below 50% 2899 | -8/Materials | Identified exit to Factory 2900 | -8/Materials | Entered Factory 2900 | -7/Factory | Evolved 2 slots: Propulsion x1, Utility x1 3243 | -7/Factory | Build established: Scavenger-Mutant 3955 | -7/Factory | Cargo convoy interrupted 4112 | -7/Factory | Fabricated Y-54 Guardian? 4371 | -7/Factory | Build established: Hacker-Mutant 4500 | -7/Factory | First assault squad dispatched 4592 | -7/Factory | Core integrity fell below 50% 4649 | -7/Factory | Lost 13 parts (2p3n3u5w) 4689 | -7/Factory | Core integrity fell below 20% 4703 | -7/Factory | Destroyed by G-50 Soldier with Heavy Laser Last Messages --------------- 04643_ Slug penetrates Unfinished Machinery. 04646_ Slug penetrates Wall. 04647_ Acquired 55 matter. 04650_ ALERT: Rogue bot located, Programmers report to Factory Zone 3O. 04651_ Penetrated by Slug. 04651_ Lgt. Ion Engine destroyed. 04652_ C-30 ARC bursts open, deploying its payload. 04652_ G-47 Trooper unfolds itself. 04652_ I-36 Angel unfolds itself. 04654_ System corrupted: Energy discharge (-31). 04664_ Slug penetrates Wall. 04670_ Lgt. Ion Engine destroyed. 04676_ System corrupted: Component data lost. 04682_ Slug penetrates Wall. 04682_ Gravmag System destroyed. 04688_ Slug penetrates Wall. 04702_ Gravmag System destroyed. 04702_ Slug penetrates Wall. Map ----- +----------------------------------------------------+ | ?????????????????????????????????????????????????? | | ?????????????????????????????????????????????????? | | ?????????????????????????????????????????????????? | | ?????????????????????????????????????????????????? | | ?????????????????????????????????????????????????? | | ?????????????????????????????????????????????????? | | ?????????????????????????????????????????????????? | | ?????????????????????????????????????????????????? | | ?????????????????????????????????????????????????? | | ?????????????????????????????????????????????????? | | ?????????????????????????????????????????????????? | | ?????????????????????????????????????????????????? | | ?????????????????????????????????????????????????? | | ?????????????????????????????????????????????????? | | ?????????????????????????????????????????????????? | | ?????????????????????????????????????????????????? | | ???????????????????????###?#?????????????????????? | | ?????????????########### ?????????????????????? | | ?????????????# """"" # """"?? #????????????????? | | ?????????????# "" F" # """" #????????????????? | | ?????????????# "" "" # """" #????????????????? | | ?????????????# # """" #????????????????? | | ?????????????# ! # """" #????????????????? | | ?????????????# ! ] [g """" #????????????????? | | ?????????????# ! # #????????????????? | | ?????????????# # @ #????????????????? | | #################/######g#######????????????????? | | i ????????????????? | | g ????????????????? | | ????????????????? | | % % ?????????????????? | | ?????????????????? | | ###########/####### ########??????????????????? | | ????## !# #?????????????????????????? | | ????## = # +?????????????????????????? | | ????##! #### #?????????????????????????? | | ????## #### ##########????????????????? | | ????## ## # ### #????????????????? | | ????## ##* # "" #????????????????? | | ?????# ##%!= # """#????????????????? | | ?????# [! %/!="%= + R"#????????????????? | | ###### ![! ## ! # """#????????????????? | | + ""T"" [!% ## # #????????????????? | | ###### """"" % # = ## ###????????????????? | | ###??# # = %## ##??????????????????? | | #??#+############ %% ##????????????###????? | | T #### ########## = # ##?????????????# #????? | | # # ##??????????????# #????? | | # ##???????????????#%#????? | | # ##################+###### | +----------------------------------------------------+ Best States ------------- Heat Dissipation 67 Energy Generation 25 Energy Capacity 430 Matter Stores 300 Matter Capacity 300 Sight Range 16 Robot Scan Range 15 Terrain Scan Density 10 Armor Coverage 150 Resistance: KI 20 Evasion (%) 55 Core Analysis 6 Recoil Reduction 2 Defensive Hacking 20 Item Schematics ----------------- None Robot Schematics ------------------ None Fabricated ------------ Y-54 Guardian | x2 | -7/Factory | Preloaded Alien Tech Used ----------------- None Achievements -------------- I Spy My Command Is Your Wish Significant Disruption Challenges ------------ None Game ------ Seed DispersionAblativeMatrix Manual? 0 Play Time 01:12:05 Cumulative 3.7 hours Start 2024.12.07 @ 15:49:41 End 2024.12.07 @ 18:59:55 Sessions 3 Manual Loads 0 Difficulty Rogue Special Mode None Game No. 9 Rogue 4 Adventurer 5 Explorer 0 Win Type - Total 0 Types 0/0/0/0/0/0/0/0/0 Lore% 2 Gallery% 8 Achievement% 10 Wizard Run 0 Options --------- Layout 1 ASCII 0 Keyboard 0 Movement Mouse Keybinds 0 Fullscreen 1 Font 24/Smallcaps Map View 50x35 Zoom Use 0% Tactical HUD 1 Map Filters NONE Filters NONE Steam 1 RUN: cb0a2e10-72d2-42ee-b86a-16970b98f47b